[Event "*** Titled Tuesday 3|2 Blitz"]
[Site "Chess.com"]
[Date "2017.03.07"]
[Round "4"]
[White "daro94"]
[Black "morphy1984"]
[Result "1-0"]
[WhiteElo "2688"]
[BlackElo "2486"]
[TimeControl "180+2"]
[EndTime "13:56:29 PST"]
[Termination "daro94 won by resignation"]

1. e4 {[%clk 0:03:02]} 1... e5 {[%clk 0:02:59.7]} 2. Nf3 {[%clk 0:03:03.2]} 2...
Nc6 {[%clk 0:03:00]} 3. Bb5 {[%clk 0:03:03.9]} 3... f5 {[%clk 0:02:59.9]} 4. d3
{[%clk 0:03:03.4]} 4... fxe4 {[%clk 0:03:00.2]} 5. dxe4 {[%clk 0:03:05.3]} 5...
Nf6 {[%clk 0:03:00.3]} 6. O-O {[%clk 0:03:05.3]} 6... Bc5 {[%clk 0:03:00.1]} 7.
Bxc6 {[%clk 0:02:55.9]} 7... bxc6 {[%clk 0:02:59.8]} 8. Nxe5 {[%clk 0:02:57]}
8... O-O {[%clk 0:02:54.4]} 9. Nd3 {[%clk 0:02:53.7]} 9... Nxe4 {[%clk
0:02:12.9]} 10. Nxc5 {[%clk 0:02:42.7]} 10... Nxc5 {[%clk 0:02:13.3]} 11. Be3
{[%clk 0:02:42.7]} 11... Ne4 {[%clk 0:02:05.3]} 12. Nd2 {[%clk 0:02:37.7]} 12...
Nxd2 {[%clk 0:01:59.2]} 13. Qxd2 {[%clk 0:02:39.6]} 13... d5 {[%clk 0:01:59.3]}
14. Bc5 {[%clk 0:02:35.3]} 14... Re8 {[%clk 0:01:57.4]} 15. Rfe1 {[%clk
0:02:35.5]} 15... Bf5 {[%clk 0:01:54.9]} 16. c3 {[%clk 0:02:28.3]} 16... a6
{[%clk 0:01:32.2]} 17. Qf4 {[%clk 0:02:13.9]} 17... Qd7 {[%clk 0:01:28.6]} 18.
f3 {[%clk 0:02:12.2]} 18... Bg6 {[%clk 0:01:22]} 19. h3 {[%clk 0:02:04.3]} 19...
h6 {[%clk 0:01:21.5]} 20. Kh2 {[%clk 0:02:03.1]} 20... Kh7 {[%clk 0:01:18.5]}
21. Bd4 {[%clk 0:01:53.2]} 21... Qf7 {[%clk 0:01:15.1]} 22. Qg3 {[%clk
0:01:49.7]} 22... Rac8 {[%clk 0:00:51.4]} 23. Be5 {[%clk 0:01:48.4]} 23... Re7
{[%clk 0:00:50.3]} 24. b4 {[%clk 0:01:26.4]} 24... Rce8 {[%clk 0:00:49]} 25. Re3
{[%clk 0:01:26.7]} 25... Qf5 {[%clk 0:00:37.6]} 26. Rae1 {[%clk 0:01:26.8]}
26... Re6 {[%clk 0:00:26.8]} 27. a4 {[%clk 0:01:22.3]} 27... R8e7 {[%clk
0:00:26.3]} 28. a5 {[%clk 0:01:23]} 28... Qc2 {[%clk 0:00:25.5]} 29. R1e2 {[%clk
0:01:23.1]} 29... Qf5 {[%clk 0:00:25.4]} 30. Qe1 {[%clk 0:01:18.9]} 30... Qf7
{[%clk 0:00:22.7]} 31. Kg1 {[%clk 0:00:47.2]} 31... Qf5 {[%clk 0:00:20.4]} 32.
Bd4 {[%clk 0:00:44.5]} 32... Rxe3 {[%clk 0:00:19.6]} 33. Rxe3 {[%clk 0:00:46.4]}
33... Rxe3 {[%clk 0:00:19.5]} 34. Qxe3 {[%clk 0:00:48.3]} 34... Qf7 {[%clk
0:00:13.7]} 35. Qe5 {[%clk 0:00:48]} 35... Bd3 {[%clk 0:00:10.7]} 36. Kh2 {[%clk
0:00:48.3]} 36... Qd7 {[%clk 0:00:10.1]} 37. g4 {[%clk 0:00:47.8]} 37... Qd6
{[%clk 0:00:10.7]} 38. Kg3 {[%clk 0:00:47.2]} 38... g5 {[%clk 0:00:09.5]} 39.
Kf2 {[%clk 0:00:45.9]} 39... Qxe5 {[%clk 0:00:09.2]} 40. Bxe5 {[%clk 0:00:47.8]}
40... Kg6 {[%clk 0:00:10.1]} 41. Bxc7 {[%clk 0:00:49]} 41... h5 {[%clk
0:00:10.9]} 42. Ke3 {[%clk 0:00:47.1]} 42... Bb5 {[%clk 0:00:10.3]} 43. Kd4
{[%clk 0:00:44.6]} 43... h4 {[%clk 0:00:06.9]} 44. Kc5 {[%clk 0:00:41.9]} 44...
Kf6 {[%clk 0:00:06.2]} 45. f4 {[%clk 0:00:40.9]} 45... gxf4 {[%clk 0:00:05.8]}
46. Bxf4 {[%clk 0:00:40.1]} 46... Kg6 {[%clk 0:00:05.1]} 47. Bc7 {[%clk
0:00:35.9]} 47... Bf1 {[%clk 0:00:03.3]} 48. Kxc6 {[%clk 0:00:21.2]} 48... Bxh3
{[%clk 0:00:03.7]} 49. Kxd5 {[%clk 0:00:22.7]} 49... Bxg4 {[%clk 0:00:04.5]} 50.
Kc5 {[%clk 0:00:22.2]} 50... Kf7 {[%clk 0:00:04.4]} 51. c4 {[%clk 0:00:19.3]}
51... Ke7 {[%clk 0:00:04.3]} 52. b5 {[%clk 0:00:19]} 52... axb5 {[%clk
0:00:05.2]} 53. cxb5 {[%clk 0:00:20.9]} 53... Kd7 {[%clk 0:00:05.9]} 54. Bh2
{[%clk 0:00:21]} 54... Kc8 {[%clk 0:00:06.1]} 55. a6 {[%clk 0:00:20.5]} 55...
Bf3 {[%clk 0:00:06.1]} 56. Kb6 {[%clk 0:00:21.3]} 56... h3 {[%clk 0:00:06.1]}
57. Ka7 {[%clk 0:00:21.7]} 57... Be2 {[%clk 0:00:03.8]} 58. b6 {[%clk
0:00:23.2]} 1-0

[Event "*** Titled Tuesday 3|2 Blitz"]
[Site "Chess.com"]
[Date "2017.03.07"]
[Round "4"]
[White "johnathan113"]
[Black "Journey_to_GrandMaster_YT"]
[Result "1-0"]
[WhiteElo "2367"]
[BlackElo "2369"]
[TimeControl "180+2"]
[EndTime "13:56:32 PST"]
[Termination "johnathan113 won by resignation"]

1. e4 {[%clk 0:03:01.3]} 1... d6 {[%clk 0:03:02]} 2. d4 {[%clk 0:03:02.4]} 2...
Nf6 {[%clk 0:03:03.1]} 3. Nc3 {[%clk 0:03:03.9]} 3... e5 {[%clk 0:03:04.3]} 4.
Nf3 {[%clk 0:03:04.6]} 4... Nbd7 {[%clk 0:03:05]} 5. Bc4 {[%clk 0:03:05.6]} 5...
Be7 {[%clk 0:03:06.5]} 6. dxe5 {[%clk 0:03:07.1]} 6... dxe5 {[%clk 0:03:05.9]}
7. Bxf7+ {[%clk 0:03:07.6]} 7... Kxf7 {[%clk 0:03:04.2]} 8. Ng5+ {[%clk
0:03:08.7]} 8... Kg6 {[%clk 0:02:58.5]} 9. Ne6 {[%clk 0:03:09.9]} 9... Qg8
{[%clk 0:02:53.3]} 10. f4 {[%clk 0:03:11.1]} 10... Bd6 {[%clk 0:02:27.8]} 11.
Nd5 {[%clk 0:03:01.5]} 11... h6 {[%clk 0:02:21.2]} 12. Nexc7 {[%clk 0:02:54.3]}
12... Nxd5 {[%clk 0:02:18.6]} 13. Nxd5 {[%clk 0:02:43.3]} 13... Kh7 {[%clk
0:02:14.1]} 14. O-O {[%clk 0:02:42.7]} 14... b6 {[%clk 0:02:07.8]} 15. Kh1
{[%clk 0:02:28.1]} 15... Ba6 {[%clk 0:02:06.2]} 16. Rf3 {[%clk 0:02:25.9]} 16...
Rd8 {[%clk 0:02:04.6]} 17. b3 {[%clk 0:02:23.4]} 17... exf4 {[%clk 0:01:51.4]}
18. c4 {[%clk 0:02:22.1]} 18... Be5 {[%clk 0:01:49.4]} 19. Rb1 {[%clk 0:02:21]}
19... g5 {[%clk 0:01:48.1]} 20. Rh3 {[%clk 0:02:12]} 20... Qg6 {[%clk
0:01:39.6]} 21. Bb2 {[%clk 0:01:31.7]} 21... Bxb2 {[%clk 0:01:34.5]} 22. Rxb2
{[%clk 0:01:31.7]} 22... Nf6 {[%clk 0:01:34.9]} 23. Re2 {[%clk 0:01:15.5]} 23...
Rhe8 {[%clk 0:01:27.1]} 24. Rd3 {[%clk 0:00:42.5]} 24... Ng4 {[%clk 0:01:06]}
25. Nc7 {[%clk 0:00:34]} 25... Rxd3 {[%clk 0:00:49.9]} 26. Qxd3 {[%clk
0:00:35.9]} 26... Ne5 {[%clk 0:00:43.9]} 27. Qd2 {[%clk 0:00:20.9]} 27... f3
{[%clk 0:00:41.7]} 28. gxf3 {[%clk 0:00:22.8]} 28... Nxf3 {[%clk 0:00:42.9]} 29.
Qd7+ {[%clk 0:00:23]} 29... Kg8 {[%clk 0:00:34.6]} 30. Qxe8+ {[%clk 0:00:22.7]}
30... Qxe8 {[%clk 0:00:34.8]} 31. Nxe8 {[%clk 0:00:24.6]} 31... Bb7 {[%clk
0:00:27]} 32. Kg2 {[%clk 0:00:22.3]} 32... Ne5 {[%clk 0:00:26]} 33. Nf6+ {[%clk
0:00:21.7]} 33... Kf7 {[%clk 0:00:25]} 34. Nd5 {[%clk 0:00:23.6]} 34... Ke6
{[%clk 0:00:25.8]} 35. Rf2 {[%clk 0:00:23.1]} 35... Ng4 {[%clk 0:00:22.7]} 36.
Rf8 {[%clk 0:00:23.5]} 36... Ke5 {[%clk 0:00:18.5]} 37. h3 {[%clk 0:00:21]}
37... Bxd5 {[%clk 0:00:12.7]} 38. exd5 {[%clk 0:00:22.9]} 38... Nf6 {[%clk
0:00:13.4]} 39. Ra8 {[%clk 0:00:21.4]} 39... a5 {[%clk 0:00:13.5]} 40. Kf3
{[%clk 0:00:20.1]} 40... h5 {[%clk 0:00:13.5]} 41. Rb8 {[%clk 0:00:19]} 41...
Nd7 {[%clk 0:00:14]} 42. Rg8 {[%clk 0:00:19.2]} 42... Kf5 {[%clk 0:00:14.3]} 43.
Ke3 {[%clk 0:00:16.9]} 43... g4 {[%clk 0:00:15]} 44. hxg4+ {[%clk 0:00:17.9]}
44... hxg4 {[%clk 0:00:16.9]} 45. Kd4 {[%clk 0:00:19.2]} 45... Kf4 {[%clk
0:00:17.8]} 46. d6 {[%clk 0:00:19.4]} 46... g3 {[%clk 0:00:18.2]} 47. Rg7 {[%clk
0:00:20.3]} 47... Nc5 {[%clk 0:00:18.2]} 48. Kd5 {[%clk 0:00:20.6]} 48... Kf3
{[%clk 0:00:17.7]} 49. d7 {[%clk 0:00:20.7]} 49... Nb7 {[%clk 0:00:16.4]} 50.
Kc6 {[%clk 0:00:18.3]} 50... Nd8+ {[%clk 0:00:17.5]} 51. Kxb6 {[%clk 0:00:19.4]}
51... g2 {[%clk 0:00:17.7]} 52. Kxa5 {[%clk 0:00:19.1]} 52... Kf2 {[%clk
0:00:17.6]} 53. Kb6 {[%clk 0:00:20.1]} 53... g1=Q {[%clk 0:00:18.4]} 54. Rxg1
{[%clk 0:00:20.4]} 54... Kxg1 {[%clk 0:00:20.3]} 55. c5 {[%clk 0:00:22.1]} 55...
Kf2 {[%clk 0:00:17.9]} 56. c6 {[%clk 0:00:24]} 56... Ke3 {[%clk 0:00:17.9]} 1-0

[Event "*** Titled Tuesday 3|2 Blitz"]
[Site "Chess.com"]
[Date "2017.03.07"]
[Round "4"]
[White "KNVB"]
[Black "Vegan4future"]
[Result "1-0"]
[WhiteElo "2482"]
[BlackElo "2267"]
[TimeControl "180+2"]
[EndTime "13:57:24 PST"]
[Termination "KNVB won by resignation"]

1. d4 {[%clk 0:03:02]} 1... Nf6 {[%clk 0:03:00.2]} 2. Nf3 {[%clk 0:03:03.1]}
2... g6 {[%clk 0:03:01.3]} 3. Bf4 {[%clk 0:03:04.6]} 3... Bg7 {[%clk 0:03:02.1]}
4. e3 {[%clk 0:03:06.5]} 4... O-O {[%clk 0:03:03.5]} 5. h3 {[%clk 0:03:08.2]}
5... d6 {[%clk 0:03:05.4]} 6. c3 {[%clk 0:03:03.8]} 6... c5 {[%clk 0:03:05.3]}
7. dxc5 {[%clk 0:03:03.1]} 7... dxc5 {[%clk 0:03:07.2]} 8. Nbd2 {[%clk
0:03:04.8]} 8... b6 {[%clk 0:03:06.6]} 9. Be2 {[%clk 0:03:01.7]} 9... Bb7 {[%clk
0:03:07.9]} 10. Qc2 {[%clk 0:03:03.2]} 10... Nbd7 {[%clk 0:03:06.2]} 11. O-O
{[%clk 0:03:03.3]} 11... Nd5 {[%clk 0:02:41.5]} 12. Bg3 {[%clk 0:03:01.6]} 12...
e5 {[%clk 0:02:32.3]} 13. Rfe1 {[%clk 0:02:54.9]} 13... Qe7 {[%clk 0:02:31.9]}
14. a4 {[%clk 0:02:55.7]} 14... Rfe8 {[%clk 0:02:10]} 15. Bc4 {[%clk 0:02:55.5]}
15... Nc7 {[%clk 0:02:05.8]} 16. e4 {[%clk 0:02:55.4]} 16... Ne6 {[%clk
0:02:04.8]} 17. Nf1 {[%clk 0:02:55.7]} 17... Nf4 {[%clk 0:02:04.8]} 18. Ne3
{[%clk 0:02:57.2]} 18... Nf6 {[%clk 0:01:59.5]} 19. Bxf4 {[%clk 0:02:55.7]}
19... Bxe4 {[%clk 0:01:45.2]} 20. Qb3 {[%clk 0:02:07.1]} 20... exf4 {[%clk
0:01:42]} 21. Nd5 {[%clk 0:02:07.4]} 21... Nxd5 {[%clk 0:00:53.9]} 22. Bxd5
{[%clk 0:02:06.3]} 22... Bxd5 {[%clk 0:00:54.8]} 23. Qxd5 {[%clk 0:02:08.2]}
23... Qc7 {[%clk 0:00:50.1]} 24. Rad1 {[%clk 0:01:57.4]} 24... Red8 {[%clk
0:00:43.8]} 25. Qc4 {[%clk 0:01:54.5]} 25... Bf6 {[%clk 0:00:39.1]} 26. Nd2
{[%clk 0:01:34.3]} 26... Rac8 {[%clk 0:00:38.4]} 27. Kf1 {[%clk 0:01:31.5]}
27... Bg7 {[%clk 0:00:35.9]} 28. Ne4 {[%clk 0:01:25.5]} 28... f3 {[%clk
0:00:31.7]} 29. g3 {[%clk 0:01:20.2]} 29... Rxd1 {[%clk 0:00:28.6]} 30. Rxd1
{[%clk 0:01:21.6]} 30... Rd8 {[%clk 0:00:30.5]} 31. Rd5 {[%clk 0:01:17.1]} 31...
Qc8 {[%clk 0:00:28.4]} 32. Ng5 {[%clk 0:01:13.1]} 32... Rxd5 {[%clk 0:00:20.9]}
33. Qxd5 {[%clk 0:01:15]} 33... Qc7 {[%clk 0:00:22.1]} 34. Qa8+ {[%clk
0:01:05.8]} 34... Bf8 {[%clk 0:00:23.3]} 35. Nxf3 {[%clk 0:01:06.1]} 35... h6
{[%clk 0:00:24.3]} 36. Qd5 {[%clk 0:01:02]} 36... a6 {[%clk 0:00:23.5]} 37. b3
{[%clk 0:00:44.4]} 37... b5 {[%clk 0:00:23.2]} 38. axb5 {[%clk 0:00:44.5]} 38...
axb5 {[%clk 0:00:25.1]} 39. c4 {[%clk 0:00:46]} 39... bxc4 {[%clk 0:00:25.8]}
40. bxc4 {[%clk 0:00:47.5]} 40... Qa7 {[%clk 0:00:22]} 41. Ne5 {[%clk
0:00:47.8]} 41... Qe7 {[%clk 0:00:22.3]} 42. Nxg6 {[%clk 0:00:48]} 42... Qf6
{[%clk 0:00:23.1]} 43. Nxf8 {[%clk 0:00:47.9]} 43... Kxf8 {[%clk 0:00:25]} 44.
Qxc5+ {[%clk 0:00:49.2]} 44... Kg8 {[%clk 0:00:26.9]} 45. Qc8+ {[%clk
0:00:49.3]} 45... Kg7 {[%clk 0:00:28.2]} 46. Qg4+ {[%clk 0:00:50.7]} 46... Kh7
{[%clk 0:00:29.3]} 47. Qe4+ {[%clk 0:00:50.4]} 47... Kg7 {[%clk 0:00:30]} 48. c5
{[%clk 0:00:41.2]} 48... Qc3 {[%clk 0:00:30.9]} 49. c6 {[%clk 0:00:40.6]} 49...
Qc1+ {[%clk 0:00:20.1]} 50. Kg2 {[%clk 0:00:41.1]} 50... Qc3 {[%clk 0:00:22]}
51. Qd5 {[%clk 0:00:38.5]} 51... h5 {[%clk 0:00:22.2]} 52. Qd6 {[%clk
0:00:19.3]} 52... Qc4 {[%clk 0:00:19.3]} 53. c7 {[%clk 0:00:14.9]} 53... Qe4+
{[%clk 0:00:20.4]} 54. Kh2 {[%clk 0:00:16.2]} 54... Qc2 {[%clk 0:00:21.2]} 55.
Qd4+ {[%clk 0:00:12.4]} 55... Kg6 {[%clk 0:00:18.7]} 56. Qf4 {[%clk 0:00:08.8]}
56... f6 {[%clk 0:00:17.5]} 57. g4 {[%clk 0:00:05.8]} 57... hxg4 {[%clk
0:00:18.4]} 58. Qxg4+ {[%clk 0:00:06.5]} 58... Kh6 {[%clk 0:00:17.9]} 59. c8=Q
{[%clk 0:00:06.7]} 59... Qxf2+ {[%clk 0:00:19.5]} 60. Qg2 {[%clk 0:00:06.4]}
60... Qf4+ {[%clk 0:00:21]} 61. Kh1 {[%clk 0:00:07.2]} 61... Qg5 {[%clk
0:00:21.2]} 62. Qh8+ {[%clk 0:00:06.3]} 62... Kg6 {[%clk 0:00:22.3]} 63. Qxg5+
{[%clk 0:00:07.2]} 63... Kxg5 {[%clk 0:00:23.3]} 64. Qg7+ {[%clk 0:00:07.7]}
64... Kf5 {[%clk 0:00:24.8]} 65. h4 {[%clk 0:00:08.9]} 65... Ke6 {[%clk
0:00:25.9]} 66. h5 {[%clk 0:00:10.8]} 66... f5 {[%clk 0:00:27.8]} 67. h6 {[%clk
0:00:12.7]} 67... f4 {[%clk 0:00:29.1]} 68. h7 {[%clk 0:00:14.6]} 68... f3
{[%clk 0:00:31]} 69. h8=Q {[%clk 0:00:16.1]} 69... f2 {[%clk 0:00:32.9]} 70.
Qe5+ {[%clk 0:00:16.5]} 1-0

[Event "*** Titled Tuesday 3|2 Blitz"]
[Site "Chess.com"]
[Date "2017.03.07"]
[Round "4"]
[White "TheCount"]
[Black "GMMarcinDziuba"]
[Result "0-1"]
[WhiteElo "2556"]
[BlackElo "2468"]
[TimeControl "180+2"]
[EndTime "13:57:32 PST"]
[Termination "GMMarcinDziuba won by resignation"]

1. Nf3 {[%clk 0:03:02]} 1... d5 {[%clk 0:02:59]} 2. g3 {[%clk 0:03:00]} 2... Nf6
{[%clk 0:02:59.2]} 3. Bg2 {[%clk 0:03:01]} 3... c6 {[%clk 0:03:00.6]} 4. c4
{[%clk 0:02:57.6]} 4... Bg4 {[%clk 0:02:53]} 5. cxd5 {[%clk 0:02:47.1]} 5...
Bxf3 {[%clk 0:02:53.7]} 6. Bxf3 {[%clk 0:02:47.7]} 6... cxd5 {[%clk 0:02:55.2]}
7. Qb3 {[%clk 0:02:39.5]} 7... Qd7 {[%clk 0:02:47.7]} 8. Nc3 {[%clk 0:02:36.3]}
8... e6 {[%clk 0:02:48]} 9. d3 {[%clk 0:02:11.5]} 9... Nc6 {[%clk 0:02:48.4]}
10. Bg2 {[%clk 0:02:07.9]} 10... Bc5 {[%clk 0:02:37.8]} 11. O-O {[%clk
0:02:04.5]} 11... O-O {[%clk 0:02:35.4]} 12. e4 {[%clk 0:02:05.8]} 12... dxe4
{[%clk 0:02:31.3]} 13. dxe4 {[%clk 0:02:04.7]} 13... Ng4 {[%clk 0:02:20.1]} 14.
Qc4 {[%clk 0:01:31.6]} 14... Qe7 {[%clk 0:02:12.1]} 15. Qe2 {[%clk 0:01:30.8]}
15... Nge5 {[%clk 0:02:09]} 16. Be3 {[%clk 0:01:22.3]} 16... Bxe3 {[%clk
0:01:50.2]} 17. Qxe3 {[%clk 0:01:23]} 17... Qb4 {[%clk 0:01:50.7]} 18. b3 {[%clk
0:01:13.9]} 18... Nd4 {[%clk 0:01:32.7]} 19. Rac1 {[%clk 0:01:14.1]} 19... Rac8
{[%clk 0:01:32.7]} 20. Rfd1 {[%clk 0:01:00.7]} 20... Rxc3 {[%clk 0:01:13.9]} 21.
Rxc3 {[%clk 0:00:59.4]} 21... Qxc3 {[%clk 0:01:15.1]} 22. Qxd4 {[%clk
0:00:59.9]} 22... Qxd4 {[%clk 0:00:49.5]} 23. Rxd4 {[%clk 0:01:00.5]} 23... g5
{[%clk 0:00:51.2]} 24. Ra4 {[%clk 0:00:42.1]} 24... a6 {[%clk 0:00:40.2]} 25.
Ra5 {[%clk 0:00:42.9]} 25... f6 {[%clk 0:00:38.6]} 26. f4 {[%clk 0:00:43.1]}
26... gxf4 {[%clk 0:00:37.4]} 27. gxf4 {[%clk 0:00:45]} 27... Nd3 {[%clk
0:00:35.6]} 28. e5 {[%clk 0:00:38.3]} 28... Rf7 {[%clk 0:00:31.6]} 29. f5 {[%clk
0:00:28.4]} 29... Nxe5 {[%clk 0:00:21.5]} 30. fxe6 {[%clk 0:00:25.7]} 30... Re7
{[%clk 0:00:22.8]} 31. Rc5 {[%clk 0:00:20.8]} 31... Kg7 {[%clk 0:00:21.6]} 32.
Rc8 {[%clk 0:00:21.7]} 32... b5 {[%clk 0:00:17.2]} 33. Bd5 {[%clk 0:00:21.7]}
33... Ng6 {[%clk 0:00:12.9]} 34. Rb8 {[%clk 0:00:09]} 34... Nf4 {[%clk
0:00:10.8]} 35. Bf3 {[%clk 0:00:06.4]} 35... Nxe6 {[%clk 0:00:10.3]} 36. Ra8
{[%clk 0:00:03.9]} 36... Nd4 {[%clk 0:00:10.4]} 37. Bd5 {[%clk 0:00:04.2]} 37...
Rd7 {[%clk 0:00:10]} 38. Be4 {[%clk 0:00:04.4]} 38... f5 {[%clk 0:00:10.5]} 39.
Bg2 {[%clk 0:00:03.5]} 39... Rd6 {[%clk 0:00:11.7]} 40. Ra7+ {[%clk 0:00:04.2]}
40... Kg6 {[%clk 0:00:13.2]} 41. Kf2 {[%clk 0:00:06.1]} 41... h5 {[%clk
0:00:11.3]} 42. a4 {[%clk 0:00:06.9]} 42... Nxb3 {[%clk 0:00:09.8]} 43. axb5
{[%clk 0:00:08.1]} 43... axb5 {[%clk 0:00:10.9]} 44. Rb7 {[%clk 0:00:09.6]}
44... Nd4 {[%clk 0:00:12.5]} 45. Bf1 {[%clk 0:00:10.6]} 45... Rd5 {[%clk
0:00:12.7]} 46. Bd3 {[%clk 0:00:10.4]} 46... Kg5 {[%clk 0:00:13.2]} 47. Ke3
{[%clk 0:00:10.9]} 47... Ne6 {[%clk 0:00:10.4]} 48. Bxb5 {[%clk 0:00:10.4]}
48... f4+ {[%clk 0:00:11]} 49. Ke4 {[%clk 0:00:09.4]} 49... Nc5+ {[%clk
0:00:07.5]} 50. Kxd5 {[%clk 0:00:10]} 50... Nxb7 {[%clk 0:00:09.4]} 51. Bc4
{[%clk 0:00:08.8]} 51... Kg4 {[%clk 0:00:08.1]} 52. Ke5 {[%clk 0:00:06.8]} 52...
f3 {[%clk 0:00:05.6]} 53. Bf1 {[%clk 0:00:07.9]} 53... Nc5 {[%clk 0:00:04.9]}
54. Kd4 {[%clk 0:00:08.6]} 54... Nb3+ {[%clk 0:00:06.1]} 55. Ke3 {[%clk
0:00:09.7]} 55... Nc5 {[%clk 0:00:06.3]} 56. Bc4 {[%clk 0:00:09.7]} 56... h4
{[%clk 0:00:06.4]} 57. Bd5 {[%clk 0:00:10.6]} 57... Kh3 {[%clk 0:00:04.3]} 58.
Bxf3 {[%clk 0:00:10.4]} 58... Kxh2 {[%clk 0:00:05.7]} 59. Kf2 {[%clk 0:00:11.2]}
59... Ne6 {[%clk 0:00:07]} 60. Bd5 {[%clk 0:00:11.8]} 60... Ng5 {[%clk
0:00:08.4]} 61. Kf1 {[%clk 0:00:12.3]} 61... Kg3 {[%clk 0:00:09.3]} 62. Kg1
{[%clk 0:00:13.6]} 62... Nh3+ {[%clk 0:00:10.8]} 63. Kh1 {[%clk 0:00:14.5]}
63... Nf2+ {[%clk 0:00:12.7]} 64. Kg1 {[%clk 0:00:15.7]} 64... h3 {[%clk
0:00:14.6]} 65. Ba8 {[%clk 0:00:16.3]} 65... Ng4 {[%clk 0:00:15.6]} 66. Kh1
{[%clk 0:00:17.3]} 66... Ne3 {[%clk 0:00:15.9]} 67. Kg1 {[%clk 0:00:17.6]} 67...
Ng4 {[%clk 0:00:17.3]} 68. Kf1 {[%clk 0:00:16.6]} 68... Nf2 {[%clk 0:00:19.2]}
69. Bb7 {[%clk 0:00:16.2]} 69... h2 {[%clk 0:00:20.6]} 70. Ba8 {[%clk 0:00:17]}
70... Nd1 {[%clk 0:00:22]} 71. Bb7 {[%clk 0:00:17.6]} 71... Ne3+ {[%clk
0:00:23.2]} 0-1

[Event "*** Titled Tuesday 3|2 Blitz"]
[Site "Chess.com"]
[Date "2017.03.07"]
[Round "4"]
[White "ChristopherYoo"]
[Black "Chesstrainer1"]
[Result "0-1"]
[WhiteElo "2143"]
[BlackElo "2332"]
[TimeControl "180+2"]
[EndTime "13:57:41 PST"]
[Termination "Chesstrainer1 won on time"]

1. e4 {[%clk 0:03:00.6]} 1... c5 {[%clk 0:03:00.7]} 2. Nf3 {[%clk 0:03:01.4]}
2... g6 {[%clk 0:03:01.1]} 3. d4 {[%clk 0:03:01.1]} 3... cxd4 {[%clk 0:03:02]}
4. Nxd4 {[%clk 0:03:01.9]} 4... Bg7 {[%clk 0:02:57.7]} 5. Nc3 {[%clk 0:03:03]}
5... Nc6 {[%clk 0:02:58.2]} 6. Be3 {[%clk 0:03:01.7]} 6... Nf6 {[%clk
0:02:58.6]} 7. Bc4 {[%clk 0:03:02.8]} 7... O-O {[%clk 0:02:58.2]} 8. Bb3 {[%clk
0:02:58.7]} 8... d6 {[%clk 0:02:56.6]} 9. f3 {[%clk 0:02:59.4]} 9... Bd7 {[%clk
0:02:53.5]} 10. Qd2 {[%clk 0:02:59.6]} 10... Nxd4 {[%clk 0:02:54]} 11. Bxd4
{[%clk 0:03:00]} 11... b5 {[%clk 0:02:55.9]} 12. g4 {[%clk 0:02:51.5]} 12... a5
{[%clk 0:02:47.9]} 13. h4 {[%clk 0:02:40.7]} 13... a4 {[%clk 0:02:39.7]} 14. Bd5
{[%clk 0:02:37.1]} 14... b4 {[%clk 0:02:21.8]} 15. Ne2 {[%clk 0:02:27]} 15...
Rc8 {[%clk 0:01:45.7]} 16. h5 {[%clk 0:02:13.8]} 16... e5 {[%clk 0:01:41.6]} 17.
Be3 {[%clk 0:02:06.2]} 17... Nxd5 {[%clk 0:01:41.5]} 18. exd5 {[%clk 0:02:00.6]}
18... a3 {[%clk 0:01:38.1]} 19. bxa3 {[%clk 0:01:57.3]} 19... e4 {[%clk
0:01:33.6]} 20. Nd4 {[%clk 0:01:57.4]} 20... exf3 {[%clk 0:01:32.4]} 21. hxg6
{[%clk 0:01:35.3]} 21... fxg6 {[%clk 0:01:14.2]} 22. Qh2 {[%clk 0:01:33.8]}
22... f2+ {[%clk 0:01:03.5]} 23. Kf1 {[%clk 0:01:11.2]} 23... Bxg4 {[%clk
0:00:46]} 24. Qxh7+ {[%clk 0:01:01]} 24... Kf7 {[%clk 0:00:46.9]} 25. Ne6 {[%clk
0:00:59.5]} 25... Qf6 {[%clk 0:00:47.2]} 26. Bd4 {[%clk 0:00:45.2]} 26... Qxd4
{[%clk 0:00:48.2]} 27. Nxd4 {[%clk 0:00:45]} 27... Rh8 {[%clk 0:00:49.8]} 28.
Ne6 {[%clk 0:00:37.4]} 28... Rxh7 {[%clk 0:00:38.6]} 29. Rxh7 {[%clk 0:00:37.5]}
29... Bxe6 {[%clk 0:00:39.1]} 30. dxe6+ {[%clk 0:00:35.8]} 30... Kg8 {[%clk
0:00:37.3]} 31. Rxg7+ {[%clk 0:00:34.5]} 31... Kxg7 {[%clk 0:00:39]} 32. axb4
{[%clk 0:00:32.8]} 32... Rxc2 {[%clk 0:00:39.9]} 33. a4 {[%clk 0:00:31.6]} 33...
Rb2 {[%clk 0:00:36.5]} 34. b5 {[%clk 0:00:25.4]} 34... Kf6 {[%clk 0:00:35.3]}
35. Rc1 {[%clk 0:00:20.5]} 35... Kxe6 {[%clk 0:00:32.6]} 36. Rc8 {[%clk
0:00:18]} 36... Rb4 {[%clk 0:00:23.4]} 37. a5 {[%clk 0:00:15.8]} 37... Rxb5
{[%clk 0:00:24.3]} 38. a6 {[%clk 0:00:16]} 38... Ra5 {[%clk 0:00:25.3]} 39. Rc6
{[%clk 0:00:11.4]} 39... Ra2 {[%clk 0:00:26]} 40. Rc7 {[%clk 0:00:10]} 40...
Rxa6 {[%clk 0:00:19]} 41. Kxf2 {[%clk 0:00:10.7]} 41... Ra3 {[%clk 0:00:19.3]}
42. Rg7 {[%clk 0:00:10.3]} 42... Kf6 {[%clk 0:00:20.2]} 43. Rd7 {[%clk
0:00:11.1]} 43... Ke5 {[%clk 0:00:21.4]} 44. Rg7 {[%clk 0:00:10.7]} 44... Kf5
{[%clk 0:00:22.4]} 45. Rd7 {[%clk 0:00:11.2]} 45... Ra6 {[%clk 0:00:23.5]} 46.
Kf3 {[%clk 0:00:08.5]} 46... Ke5 {[%clk 0:00:22.9]} 47. Rg7 {[%clk 0:00:09.1]}
47... d5 {[%clk 0:00:23.3]} 48. Ke3 {[%clk 0:00:08.2]} 48... Ra3+ {[%clk
0:00:20.6]} 49. Ke2 {[%clk 0:00:09.3]} 49... Rg3 {[%clk 0:00:20.9]} 50. Kf2
{[%clk 0:00:09.4]} 50... Rg5 {[%clk 0:00:21.7]} 51. Ke3 {[%clk 0:00:06.9]} 51...
d4+ {[%clk 0:00:21]} 52. Ke2 {[%clk 0:00:07.1]} 52... Rg2+ {[%clk 0:00:16.9]}
53. Kf3 {[%clk 0:00:05.1]} 53... Rg5 {[%clk 0:00:17.8]} 54. Ke2 {[%clk
0:00:05.8]} 54... Ke6 {[%clk 0:00:16.8]} 55. Kd3 {[%clk 0:00:05.9]} 55... Kf6
{[%clk 0:00:16.1]} 56. Rg8 {[%clk 0:00:06]} 56... Rd5 {[%clk 0:00:16]} 57. Rf8+
{[%clk 0:00:04.6]} 57... Kg5 {[%clk 0:00:16.5]} 58. Ke4 {[%clk 0:00:05.2]} 58...
Rd7 {[%clk 0:00:17.1]} 59. Rf3 {[%clk 0:00:03.2]} 59... d3 {[%clk 0:00:17.6]}
60. Rg3+ {[%clk 0:00:03.2]} 60... Kh5 {[%clk 0:00:18.9]} 61. Kf4 {[%clk
0:00:02.3]} 61... Rd4+ {[%clk 0:00:13.5]} 0-1